[Event "Titled Tuesday Blitz May 23 Late 2023"]
[White "Wang, Alexander J"]
[Black "Toncheva, Nadya"]
[WhiteFideId "30955270"]
[BlackFideId "2924056"]
[WhiteElo "2276"]
[BlackElo "2101"]
[Result "1-0"]
[Round "03"]
[TimeControl "180+2"]
[Date "2023.05.23"]
[WhiteClock "0:00:06"]
[BlackClock "0:00:00"]

1. e4 {[%clk 0:02:41]}  c5 {[%clk 0:02:59]} 2. Nf3 {[%clk 0:02:41]}  Nc6 {[%clk 0:03:00]} 3. d4 {[%clk 0:02:41]}  cxd4 {[%clk 0:03:01]} 4. Nxd4 {[%clk 0:02:42]}  g6 {[%clk 0:03:02]} 5. Nc3 {[%clk 0:02:43]}  Bg7 {[%clk 0:03:02]} 6. Be3 {[%clk 0:02:44]}  Nf6 {[%clk 0:03:02]} 7. Bc4 {[%clk 0:02:44]}  O-O {[%clk 0:03:03]} 8. Bb3 {[%clk 0:02:43]}  d6 {[%clk 0:03:03]} 9. f3 {[%clk 0:02:43]}  Bd7 {[%clk 0:03:04]} 10. Qd2 {[%clk 0:02:43]}  Rc8 {[%clk 0:03:04]} 11. O-O-O {[%clk 0:02:44]}  Na5 {[%clk 0:03:05]} 12. h4 {[%clk 0:02:40]}  h5 {[%clk 0:03:05]} 13. Kb1 {[%clk 0:02:39]}  Nc4 {[%clk 0:03:06]} 14. Bxc4 {[%clk 0:02:39]}  Rxc4 {[%clk 0:03:06]} 15. g4 {[%clk 0:02:36]}  b5 {[%clk 0:03:05]} 16. gxh5 {[%clk 0:02:32]}  Nxh5 {[%clk 0:03:06]} 17. b3 {[%clk 0:02:27]}  Rc8 {[%clk 0:02:34]} 18. Nd5 {[%clk 0:02:06]}  a5 {[%clk 0:02:04]} 19. Bh6 {[%clk 0:01:12]}  e6 {[%clk 0:01:47]} 20. Bxg7 {[%clk 0:00:48]}  Kxg7 {[%clk 0:01:48]} 21. Nf4 {[%clk 0:00:48]}  Nxf4 {[%clk 0:01:45]} 22. Qxf4 {[%clk 0:00:48]}  Qf6 {[%clk 0:01:38]} 23. Qxd6 {[%clk 0:00:13]}  Rfd8 {[%clk 0:01:38]} 24. h5 {[%clk 0:00:12]}  Bc6 {[%clk 0:01:16]} 25. Qc5 {[%clk 0:00:04]}  Bxe4 {[%clk 0:01:13]} 26. Qb6 {[%clk 0:00:03]}  Rb8 {[%clk 0:00:42]} 27. h6+ {[%clk 0:00:04]}  Kh7 {[%clk 0:00:38]} 28. Qc5 {[%clk 0:00:05]}  Rd5 {[%clk 0:00:26]} 29. Qa7 {[%clk 0:00:04]}  Rbd8 {[%clk 0:00:22]} 30. fxe4 {[%clk 0:00:04]}  Rxd4 {[%clk 0:00:22]} 31. Rxd4 {[%clk 0:00:05]}  Rxd4 {[%clk 0:00:22]} 32. e5 {[%clk 0:00:05]}  Qf4 {[%clk 0:00:17]} 33. Qe7 {[%clk 0:00:05]}  Rd2 {[%clk 0:00:02]} 34. Qf8 {[%clk 0:00:04]}  Qxe5 {[%clk 0:00:02]} 35. Qxf7+ {[%clk 0:00:05]}  Kh8 {[%clk 0:00:03]} 36. Qf8+ {[%clk 0:00:05]}  Kh7 {[%clk 0:00:03]} 37. Qf7+ {[%clk 0:00:04]}  Kh8 {[%clk 0:00:04]} 38. Qxg6 {[%clk 0:00:04]}  Rd7 {[%clk 0:00:01]} 39. Qe8+ {[%clk 0:00:04]}  Kh7 {[%clk 0:00:01]} 40. Qxd7+ {[%clk 0:00:05]}  Kg6 {[%clk 0:00:02]} 41. Qe8+ {[%clk 0:00:06]}  Kf5 {[%clk 0:00:02]} 42. h7 {[%clk 0:00:06]}  Qe4 {[%clk 0:00:01]} 43. Qf7+ {[%clk 0:00:06]}  Kg4 {[%clk 0:00:00]} 44. Rc1 {[%clk 0:00:06]} 1-0


[Site "https://www.chess.com"]

[Event "Titled Tuesday Blitz May 23 Late 2023"]
[White "lluiss"]
[Black "Tologon tegin, Semetei"]
[BlackFideId "13800574"]
[WhiteElo "2270"]
[BlackElo "2247"]
[Result "0-1"]
[Round "03"]
[TimeControl "180+2"]
[Date "2023.05.23"]
[WhiteClock "0:00:00"]
[BlackClock "0:00:09"]

1. Nf3 {[%clk 0:03:00]}  d5 {[%clk 0:02:18]} 2. d4 {[%clk 0:02:58]}  e6 {[%clk 0:02:19]} 3. c4 {[%clk 0:02:57]}  a6 {[%clk 0:02:17]} 4. cxd5 {[%clk 0:02:56]}  exd5 {[%clk 0:02:17]} 5. Nc3 {[%clk 0:02:57]}  c6 {[%clk 0:02:16]} 6. Bf4 {[%clk 0:02:51]}  Nf6 {[%clk 0:02:16]} 7. e3 {[%clk 0:02:51]}  Be6 {[%clk 0:02:15]} 8. Bd3 {[%clk 0:02:50]}  Bd6 {[%clk 0:02:15]} 9. Bxd6 {[%clk 0:02:46]}  Qxd6 {[%clk 0:02:14]} 10. h3 {[%clk 0:02:46]}  O-O {[%clk 0:02:14]} 11. O-O {[%clk 0:02:46]}  Nbd7 {[%clk 0:02:14]} 12. Rb1 {[%clk 0:02:43]}  a5 {[%clk 0:02:06]} 13. a4 {[%clk 0:02:28]}  Rfe8 {[%clk 0:01:52]} 14. Qc2 {[%clk 0:02:21]}  Nf8 {[%clk 0:01:50]} 15. Ne5 {[%clk 0:02:19]}  N6d7 {[%clk 0:01:49]} 16. Nxd7 {[%clk 0:02:17]}  Bxd7 {[%clk 0:01:40]} 17. Ne2 {[%clk 0:02:10]}  Ng6 {[%clk 0:01:35]} 18. Bxg6 {[%clk 0:02:08]}  fxg6 {[%clk 0:01:29]} 19. Rbc1 {[%clk 0:02:05]}  Rf8 {[%clk 0:01:20]} 20. Qc5 {[%clk 0:02:05]}  Qf6 {[%clk 0:01:19]} 21. Qb6 {[%clk 0:01:53]}  Bc8 {[%clk 0:01:15]} 22. Qc7 {[%clk 0:01:51]}  g5 {[%clk 0:01:13]} 23. Qg3 {[%clk 0:01:44]}  Bf5 {[%clk 0:01:09]} 24. Rc3 {[%clk 0:01:38]}  Qg6 {[%clk 0:00:59]} 25. Re1 {[%clk 0:00:45]}  Rf7 {[%clk 0:00:58]} 26. Qe5 {[%clk 0:00:43]}  Raf8 {[%clk 0:00:56]} 27. Ng3 {[%clk 0:00:42]}  Bc8 {[%clk 0:00:44]} 28. Rf1 {[%clk 0:00:36]}  Qh6 {[%clk 0:00:38]} 29. f3 {[%clk 0:00:19]}  Qg6 {[%clk 0:00:26]} 30. Kh2 {[%clk 0:00:18]}  h5 {[%clk 0:00:25]} 31. Ne2 {[%clk 0:00:13]}  Qh6 {[%clk 0:00:18]} 32. f4 {[%clk 0:00:11]}  gxf4 {[%clk 0:00:14]} 33. Rxf4 {[%clk 0:00:11]}  Rxf4 {[%clk 0:00:10]} 34. Nxf4 {[%clk 0:00:11]}  h4 {[%clk 0:00:11]} 35. Rc1 {[%clk 0:00:10]}  g5 {[%clk 0:00:11]} 36. Ne2 {[%clk 0:00:07]}  Qf6 {[%clk 0:00:11]} 37. Qxf6 {[%clk 0:00:07]}  Rxf6 {[%clk 0:00:12]} 38. Kg1 {[%clk 0:00:07]}  Kf7 {[%clk 0:00:10]} 39. Rf1 {[%clk 0:00:07]}  Bf5 {[%clk 0:00:09]} 40. Nc3 {[%clk 0:00:06]}  Bd3 {[%clk 0:00:09]} 41. Rxf6+ {[%clk 0:00:05]}  Kxf6 {[%clk 0:00:10]} 42. Kf2 {[%clk 0:00:05]}  Be4 {[%clk 0:00:08]} 43. g3 {[%clk 0:00:05]}  Kf5 {[%clk 0:00:06]} 44. gxh4 {[%clk 0:00:05]}  gxh4 {[%clk 0:00:06]} 45. Nxe4 {[%clk 0:00:04]}  Kxe4 {[%clk 0:00:05]} 46. Ke2 {[%clk 0:00:04]}  b6 {[%clk 0:00:05]} 47. b3 {[%clk 0:00:03]}  c5 {[%clk 0:00:06]} 48. dxc5 {[%clk 0:00:03]}  bxc5 {[%clk 0:00:07]} 49. Kd2 {[%clk 0:00:03]}  Kf3 {[%clk 0:00:06]} 50. Kd3 {[%clk 0:00:02]}  Kg3 {[%clk 0:00:07]} 51. e4 {[%clk 0:00:03]}  dxe4+ {[%clk 0:00:06]} 52. Kxe4 {[%clk 0:00:03]}  Kxh3 {[%clk 0:00:07]} 53. Kd5 {[%clk 0:00:03]}  Kg4 {[%clk 0:00:06]} 54. Kxc5 {[%clk 0:00:04]}  h3 {[%clk 0:00:06]} 55. b4 {[%clk 0:00:05]}  h2 {[%clk 0:00:07]} 56. bxa5 {[%clk 0:00:05]}  h1=Q {[%clk 0:00:07]} 57. a6 {[%clk 0:00:04]}  Qa8 {[%clk 0:00:08]} 58. Kb6 {[%clk 0:00:00]}  Kf5 {[%clk 0:00:09]} 0-1


[Site "https://www.chess.com"]

[Event "Titled Tuesday Blitz May 23 Late 2023"]
[White "Djabri,Massinas"]
[Black "Osmak, Yuliia"]
[WhiteFideId "7905726"]
[BlackFideId "14101602"]
[WhiteElo "2194"]
[BlackElo "2303"]
[Result "1-0"]
[Round "03"]
[TimeControl "180+2"]
[Date "2023.05.23"]
[WhiteClock "0:00:10"]
[BlackClock "0:00:24"]

1. e4 {[%clk 0:03:00]}  c5 {[%clk 0:02:59]} 2. Nf3 {[%clk 0:03:00]}  Nf6 {[%clk 0:02:59]} 3. e5 {[%clk 0:02:57]}  Nd5 {[%clk 0:02:59]} 4. c4 {[%clk 0:02:57]}  Nb6 {[%clk 0:02:53]} 5. Nc3 {[%clk 0:02:51]}  Nc6 {[%clk 0:02:53]} 6. Ne4 {[%clk 0:02:40]}  d5 {[%clk 0:02:46]} 7. Nxc5 {[%clk 0:02:33]}  dxc4 {[%clk 0:02:41]} 8. d4 {[%clk 0:02:21]}  Bg4 {[%clk 0:02:35]} 9. Nxb7 {[%clk 0:02:16]}  Qd5 {[%clk 0:02:28]} 10. Be3 {[%clk 0:02:08]}  e6 {[%clk 0:02:24]} 11. Be2 {[%clk 0:01:31]}  Bb4+ {[%clk 0:02:24]} 12. Kf1 {[%clk 0:01:30]}  O-O {[%clk 0:02:21]} 13. h3 {[%clk 0:01:20]}  Bh5 {[%clk 0:02:18]} 14. Rc1 {[%clk 0:00:59]}  Rfc8 {[%clk 0:01:58]} 15. Nc5 {[%clk 0:00:51]}  Bxc5 {[%clk 0:01:54]} 16. dxc5 {[%clk 0:00:52]}  Nd7 {[%clk 0:01:52]} 17. Bxc4 {[%clk 0:00:45]}  Qxd1+ {[%clk 0:01:52]} 18. Rxd1 {[%clk 0:00:46]}  Ndxe5 {[%clk 0:01:51]} 19. Be2 {[%clk 0:00:42]}  Bg6 {[%clk 0:01:50]} 20. Nxe5 {[%clk 0:00:33]}  Nxe5 {[%clk 0:01:51]} 21. b4 {[%clk 0:00:30]}  Rab8 {[%clk 0:01:50]} 22. b5 {[%clk 0:00:27]}  Bc2 {[%clk 0:01:48]} 23. Rd2 {[%clk 0:00:20]}  Ba4 {[%clk 0:01:48]} 24. Rb2 {[%clk 0:00:21]}  a6 {[%clk 0:01:40]} 25. b6 {[%clk 0:00:20]}  Bb5 {[%clk 0:01:33]} 26. Bxb5 {[%clk 0:00:16]}  axb5 {[%clk 0:01:34]} 27. Rxb5 {[%clk 0:00:15]}  Nc4 {[%clk 0:01:34]} 28. Ke2 {[%clk 0:00:13]}  Ra8 {[%clk 0:01:33]} 29. Rc1 {[%clk 0:00:10]}  Rxa2+ {[%clk 0:01:32]} 30. Kf3 {[%clk 0:00:11]}  Ne5+ {[%clk 0:01:32]} 31. Kg3 {[%clk 0:00:10]}  Nc6 {[%clk 0:01:29]} 32. b7 {[%clk 0:00:09]}  Rb8 {[%clk 0:01:29]} 33. Rb6 {[%clk 0:00:10]}  h5 {[%clk 0:01:15]} 34. Rxc6 {[%clk 0:00:08]}  Rxb7 {[%clk 0:01:16]} 35. Rc8+ {[%clk 0:00:08]}  Kh7 {[%clk 0:01:16]} 36. c6 {[%clk 0:00:09]}  Rb3 {[%clk 0:01:10]} 37. c7 {[%clk 0:00:09]}  f5 {[%clk 0:01:04]} 38. Rh8+ {[%clk 0:00:09]}  Kxh8 {[%clk 0:01:03]} 39. c8=Q+ {[%clk 0:00:10]}  Kh7 {[%clk 0:00:24]} 40. Qxe6 {[%clk 0:00:10]} 1-0


[Site "https://www.chess.com"]

[Event "Titled Tuesday Blitz May 23 Late 2023"]
[White "Palacio,Igor Da Paz"]
[Black "Baghdasaryan, Vahe"]
[WhiteFideId "2121140"]
[BlackFideId "13303139"]
[WhiteElo "2126"]
[BlackElo "2216"]
[Result "0-1"]
[Round "03"]
[TimeControl "180+2"]
[Date "2023.05.23"]
[WhiteClock "0:00:03"]
[BlackClock "0:00:33"]

1. e4 {[%clk 0:03:00]}  c5 {[%clk 0:02:57]} 2. Nc3 {[%clk 0:03:00]}  Nc6 {[%clk 0:02:56]} 3. g3 {[%clk 0:03:01]}  g6 {[%clk 0:02:52]} 4. Bg2 {[%clk 0:03:01]}  Bg7 {[%clk 0:02:53]} 5. d3 {[%clk 0:03:02]}  d6 {[%clk 0:02:47]} 6. f4 {[%clk 0:03:02]}  Nf6 {[%clk 0:02:43]} 7. Nf3 {[%clk 0:03:02]}  O-O {[%clk 0:02:11]} 8. O-O {[%clk 0:03:01]}  Rb8 {[%clk 0:02:10]} 9. a4 {[%clk 0:02:59]}  a6 {[%clk 0:02:08]} 10. h3 {[%clk 0:02:53]}  b5 {[%clk 0:02:06]} 11. axb5 {[%clk 0:02:54]}  axb5 {[%clk 0:02:03]} 12. g4 {[%clk 0:02:53]}  Nd4 {[%clk 0:01:54]} 13. Nxd4 {[%clk 0:02:46]}  cxd4 {[%clk 0:01:53]} 14. Nb1 {[%clk 0:02:42]}  Nd7 {[%clk 0:01:47]} 15. Nd2 {[%clk 0:02:38]}  Bb7 {[%clk 0:01:47]} 16. Nf3 {[%clk 0:02:33]}  Qc7 {[%clk 0:01:46]} 17. Rf2 {[%clk 0:02:32]}  Ra8 {[%clk 0:01:39]} 18. Rxa8 {[%clk 0:02:20]}  Rxa8 {[%clk 0:01:37]} 19. Bd2 {[%clk 0:02:18]}  Nc5 {[%clk 0:01:27]} 20. Qb1 {[%clk 0:01:57]}  Qb6 {[%clk 0:01:11]} 21. Kh2 {[%clk 0:01:52]}  Qa7 {[%clk 0:01:07]} 22. Rf1 {[%clk 0:01:49]}  Qa2 {[%clk 0:01:05]} 23. b3 {[%clk 0:01:26]}  Qxb1 {[%clk 0:00:59]} 24. Rxb1 {[%clk 0:01:27]}  Ra2 {[%clk 0:00:58]} 25. Ne1 {[%clk 0:01:26]}  Bh6 {[%clk 0:00:45]} 26. Kg3 {[%clk 0:01:17]}  e5 {[%clk 0:00:41]} 27. g5 {[%clk 0:01:11]}  Bg7 {[%clk 0:00:41]} 28. f5 {[%clk 0:00:57]}  gxf5 {[%clk 0:00:40]} 29. exf5 {[%clk 0:00:57]}  Bxg2 {[%clk 0:00:40]} 30. Kxg2 {[%clk 0:00:58]}  e4 {[%clk 0:00:40]} 31. dxe4 {[%clk 0:00:47]}  d3 {[%clk 0:00:40]} 32. Kf3 {[%clk 0:00:16]}  dxc2 {[%clk 0:00:36]} 33. Rc1 {[%clk 0:00:17]}  Nxb3 {[%clk 0:00:36]} 34. Rxc2 {[%clk 0:00:06]}  Nd4+ {[%clk 0:00:35]} 35. Ke3 {[%clk 0:00:05]}  Nxc2+ {[%clk 0:00:36]} 36. Nxc2 {[%clk 0:00:05]}  Rxc2 {[%clk 0:00:35]} 37. f6 {[%clk 0:00:03]}  Bf8 {[%clk 0:00:33]} 0-1


[Site "https://www.chess.com"]

[Event "Titled Tuesday Blitz May 23 Late 2023"]
[White "kiwibobo"]
[Black "Ezat, Mohamed"]
[BlackFideId "10600906"]
[WhiteElo "2181"]
[BlackElo "2386"]
[Result "0-1"]
[Round "03"]
[TimeControl "180+2"]
[Date "2023.05.23"]
[WhiteClock "0:00:13"]
[BlackClock "0:00:59"]

1. e4 {[%clk 0:02:58]}  Nf6 {[%clk 0:02:59]} 2. e5 {[%clk 0:02:56]}  Nd5 {[%clk 0:02:58]} 3. d4 {[%clk 0:02:51]}  d6 {[%clk 0:02:58]} 4. c4 {[%clk 0:02:49]}  Nb6 {[%clk 0:02:57]} 5. f4 {[%clk 0:02:49]}  Bf5 {[%clk 0:02:53]} 6. Nc3 {[%clk 0:02:47]}  e6 {[%clk 0:02:52]} 7. Be3 {[%clk 0:02:45]}  Be7 {[%clk 0:02:51]} 8. Nf3 {[%clk 0:02:45]}  O-O {[%clk 0:02:50]} 9. Be2 {[%clk 0:02:45]}  Nc6 {[%clk 0:02:49]} 10. O-O {[%clk 0:02:44]}  dxe5 {[%clk 0:02:48]} 11. fxe5 {[%clk 0:02:44]}  Bg4 {[%clk 0:02:48]} 12. h3 {[%clk 0:02:33]}  Bxf3 {[%clk 0:02:47]} 13. Rxf3 {[%clk 0:02:34]}  Bg5 {[%clk 0:02:37]} 14. Bf2 {[%clk 0:02:17]}  f5 {[%clk 0:02:35]} 15. Qd3 {[%clk 0:01:56]}  Bh4 {[%clk 0:02:32]} 16. g3 {[%clk 0:01:49]}  Bg5 {[%clk 0:02:27]} 17. Rd1 {[%clk 0:01:40]}  f4 {[%clk 0:02:26]} 18. g4 {[%clk 0:01:34]}  Bh4 {[%clk 0:02:25]} 19. Qe4 {[%clk 0:01:30]}  Bxf2+ {[%clk 0:02:20]} 20. Rxf2 {[%clk 0:01:31]}  Qh4 {[%clk 0:02:18]} 21. Kg2 {[%clk 0:01:23]}  Qg3+ {[%clk 0:02:17]} 22. Kf1 {[%clk 0:01:18]}  Qxh3+ {[%clk 0:02:17]} 23. Ke1 {[%clk 0:01:12]}  f3 {[%clk 0:01:53]} 24. Rxf3 {[%clk 0:01:01]}  Qh4+ {[%clk 0:01:44]} 25. Kd2 {[%clk 0:00:57]}  Nxd4 {[%clk 0:01:36]} 26. Rxf8+ {[%clk 0:00:36]}  Rxf8 {[%clk 0:01:33]} 27. Rh1 {[%clk 0:00:24]}  Qg5+ {[%clk 0:01:21]} 28. Kd1 {[%clk 0:00:24]}  Rd8 {[%clk 0:01:15]} 29. Qxh7+ {[%clk 0:00:16]}  Kf8 {[%clk 0:01:05]} 30. Bd3 {[%clk 0:00:14]}  Nf3 {[%clk 0:01:00]} 31. Rf1 {[%clk 0:00:13]}  Qd2# {[%clk 0:00:59]} 0-1


[Site "https://www.chess.com"]

[Event "Titled Tuesday Blitz May 23 Late 2023"]
[White "Ladan, Nicholas"]
[Black "Matute Escobar, Roxanny"]
[WhiteFideId "30918855"]
[BlackFideId "3926028"]
[WhiteElo "2167"]
[BlackElo "1844"]
[Result "1-0"]
[Round "03"]
[TimeControl "180+2"]
[Date "2023.05.23"]
[WhiteClock "0:00:25"]
[BlackClock "0:00:00"]

1. d4 {[%clk 0:03:00]}  Nf6 {[%clk 0:02:59]} 2. c3 {[%clk 0:03:01]}  g6 {[%clk 0:02:59]} 3. Bg5 {[%clk 0:03:01]}  Bg7 {[%clk 0:02:59]} 4. Nd2 {[%clk 0:02:58]}  c5 {[%clk 0:02:58]} 5. e3 {[%clk 0:02:51]}  cxd4 {[%clk 0:02:58]} 6. exd4 {[%clk 0:02:50]}  O-O {[%clk 0:02:58]} 7. Bd3 {[%clk 0:02:46]}  Nc6 {[%clk 0:02:51]} 8. h4 {[%clk 0:02:44]}  e5 {[%clk 0:02:42]} 9. d5 {[%clk 0:02:37]}  Ne7 {[%clk 0:02:36]} 10. c4 {[%clk 0:02:35]}  d6 {[%clk 0:02:31]} 11. h5 {[%clk 0:02:31]}  Qb6 {[%clk 0:02:11]} 12. Qf3 {[%clk 0:02:13]}  Bg4 {[%clk 0:01:38]} 13. Qg3 {[%clk 0:02:13]}  Nf5 {[%clk 0:01:38]} 14. Bxf5 {[%clk 0:01:57]}  Bxf5 {[%clk 0:01:39]} 15. b3 {[%clk 0:01:46]}  Qd4 {[%clk 0:01:19]} 16. Rd1 {[%clk 0:01:43]}  Bc2 {[%clk 0:01:17]} 17. Ne2 {[%clk 0:01:39]}  Qb2 {[%clk 0:01:16]} 18. Rc1 {[%clk 0:01:25]}  e4 {[%clk 0:01:08]} 19. h6 {[%clk 0:01:17]}  Bh8 {[%clk 0:01:08]} 20. O-O {[%clk 0:01:08]}  Bd3 {[%clk 0:01:06]} 21. Rfe1 {[%clk 0:00:56]}  Bxe2 {[%clk 0:01:06]} 22. Rb1 {[%clk 0:00:47]}  Nh5 {[%clk 0:00:42]} 23. Qxd6 {[%clk 0:00:46]}  Qc3 {[%clk 0:00:18]} 24. Rxe2 {[%clk 0:00:45]}  Be5 {[%clk 0:00:17]} 25. Nxe4 {[%clk 0:00:34]}  Bxd6 {[%clk 0:00:16]} 26. Nxc3 {[%clk 0:00:33]}  Nf4 {[%clk 0:00:17]} 27. Bxf4 {[%clk 0:00:33]}  Bxf4 {[%clk 0:00:18]} 28. Re7 {[%clk 0:00:27]}  Rab8 {[%clk 0:00:00]} 29. Ne4 {[%clk 0:00:25]} 1-0


[Site "https://www.chess.com"]

[Event "Titled Tuesday Blitz May 23 Late 2023"]
[White "Haszon, David"]
[Black "Prado, Alexandra"]
[WhiteFideId "733610"]
[BlackFideId "3301346"]
[WhiteElo "2210"]
[BlackElo "1759"]
[Result "1-0"]
[Round "03"]
[TimeControl "180+2"]
[Date "2023.05.23"]
[WhiteClock "0:01:14"]
[BlackClock "0:00:00"]

1. d4 {[%clk 0:03:00]}  Nf6 {[%clk 0:02:57]} 2. Bf4 {[%clk 0:03:00]}  g6 {[%clk 0:02:56]} 3. Nc3 {[%clk 0:03:00]}  d5 {[%clk 0:02:36]} 4. h4 {[%clk 0:02:44]}  h5 {[%clk 0:02:30]} 5. Nf3 {[%clk 0:02:43]}  Bg7 {[%clk 0:02:19]} 6. Ng5 {[%clk 0:02:43]}  Bf5 {[%clk 0:02:00]} 7. e3 {[%clk 0:02:36]}  a6 {[%clk 0:01:56]} 8. Bd3 {[%clk 0:02:37]}  Bxd3 {[%clk 0:01:55]} 9. Qxd3 {[%clk 0:02:38]}  Nbd7 {[%clk 0:01:55]} 10. O-O-O {[%clk 0:02:35]}  e6 {[%clk 0:01:49]} 11. f3 {[%clk 0:02:28]}  c5 {[%clk 0:01:45]} 12. e4 {[%clk 0:02:23]}  dxe4 {[%clk 0:01:36]} 13. Ncxe4 {[%clk 0:02:21]}  Nxe4 {[%clk 0:01:33]} 14. Qxe4 {[%clk 0:02:21]}  cxd4 {[%clk 0:01:15]} 15. Nxe6 {[%clk 0:01:57]}  fxe6 {[%clk 0:01:11]} 16. Qxg6+ {[%clk 0:01:56]}  Kf8 {[%clk 0:00:43]} 17. Bd6+ {[%clk 0:01:57]}  Kg8 {[%clk 0:00:43]} 18. Qxe6+ {[%clk 0:01:57]}  Kh7 {[%clk 0:00:43]} 19. Qf5+ {[%clk 0:01:57]}  Kg8 {[%clk 0:00:43]} 20. Qd5+ {[%clk 0:01:57]}  Kh7 {[%clk 0:00:39]} 21. Qxh5+ {[%clk 0:01:58]}  Kg8 {[%clk 0:00:39]} 22. Qd5+ {[%clk 0:01:57]}  Kh7 {[%clk 0:00:40]} 23. Qxb7 {[%clk 0:01:51]}  Nf6 {[%clk 0:00:34]} 24. Be5 {[%clk 0:01:47]}  Qd5 {[%clk 0:00:07]} 25. Qxd5 {[%clk 0:01:35]}  Nxd5 {[%clk 0:00:08]} 26. Bxg7 {[%clk 0:01:36]}  Kxg7 {[%clk 0:00:08]} 27. Rxd4 {[%clk 0:01:36]}  Ne3 {[%clk 0:00:07]} 28. Re1 {[%clk 0:01:36]}  Rhe8 {[%clk 0:00:05]} 29. g4 {[%clk 0:01:31]}  Rac8 {[%clk 0:00:06]} 30. Rd7+ {[%clk 0:01:29]}  Kf6 {[%clk 0:00:05]} 31. Rd6+ {[%clk 0:01:30]}  Kf7 {[%clk 0:00:04]} 32. c3 {[%clk 0:01:26]}  Nc4 {[%clk 0:00:01]} 33. Rxe8 {[%clk 0:01:25]}  Rxe8 {[%clk 0:00:02]} 34. Rxa6 {[%clk 0:01:18]}  Ne5 {[%clk 0:00:02]} 35. g5 {[%clk 0:01:15]}  Nxf3 {[%clk 0:00:00]} 36. Rf6+ {[%clk 0:01:14]} 1-0


[Site "https://www.chess.com"]

[Event "Titled Tuesday Blitz May 23 Late 2023"]
[White "Sattarov, Bobir"]
[Black "Ottosen, David"]
[WhiteFideId "14203081"]
[BlackFideId "2603080"]
[WhiteElo "2351"]
[BlackElo "2031"]
[Result "1-0"]
[Round "03"]
[TimeControl "180+2"]
[Date "2023.05.23"]
[WhiteClock "0:02:05"]
[BlackClock "0:01:58"]

1. e4 {[%clk 0:03:00]}  e6 {[%clk 0:02:58]} 2. Nc3 {[%clk 0:02:57]}  d5 {[%clk 0:02:58]} 3. Nf3 {[%clk 0:02:58]}  Nf6 {[%clk 0:02:54]} 4. e5 {[%clk 0:02:58]}  Nfd7 {[%clk 0:02:54]} 5. d4 {[%clk 0:02:59]}  c5 {[%clk 0:02:55]} 6. dxc5 {[%clk 0:03:00]}  Bxc5 {[%clk 0:02:53]} 7. Bd3 {[%clk 0:02:59]}  Nc6 {[%clk 0:02:53]} 8. Bf4 {[%clk 0:02:58]}  Nb4 {[%clk 0:02:53]} 9. Be2 {[%clk 0:02:54]}  a6 {[%clk 0:02:50]} 10. a3 {[%clk 0:02:55]}  Nc6 {[%clk 0:02:50]} 11. Bd3 {[%clk 0:02:55]}  b5 {[%clk 0:02:40]} 12. O-O {[%clk 0:02:55]}  Nb6 {[%clk 0:02:40]} 13. Ng5 {[%clk 0:02:45]}  Be7 {[%clk 0:02:39]} 14. Qh5 {[%clk 0:02:44]}  g6 {[%clk 0:02:28]} 15. Qh6 {[%clk 0:02:41]}  Bf8 {[%clk 0:02:28]} 16. Qh3 {[%clk 0:02:36]}  h6 {[%clk 0:02:28]} 17. Rfe1 {[%clk 0:02:25]}  Nc4 {[%clk 0:02:26]} 18. Bxc4 {[%clk 0:02:11]}  dxc4 {[%clk 0:02:26]} 19. Rad1 {[%clk 0:02:11]}  Qe7 {[%clk 0:02:26]} 20. Nce4 {[%clk 0:02:10]}  Bg7 {[%clk 0:02:19]} 21. Nd6+ {[%clk 0:02:06]}  Kf8 {[%clk 0:02:16]} 22. Ngxf7 {[%clk 0:02:07]}  Rh7 {[%clk 0:02:16]} 23. Qf3 {[%clk 0:02:06]}  Kg8 {[%clk 0:01:58]} 24. Qxc6 {[%clk 0:02:05]} 1-0


[Site "https://www.chess.com"]

[Event "Titled Tuesday Blitz May 23 Late 2023"]
[White "Dzierzak, Radoslaw"]
[Black "Estrada Nieto, Julian"]
[WhiteFideId "1161407"]
[BlackFideId "5101018"]
[WhiteElo "2166"]
[BlackElo "2161"]
[Result "0-1"]
[Round "03"]
[TimeControl "180+2"]
[Date "2023.05.23"]
[WhiteClock "0:00:00"]
[BlackClock "0:00:43"]

1. e4 {[%clk 0:02:53]}  e5 {[%clk 0:02:59]} 2. Nf3 {[%clk 0:02:54]}  Nc6 {[%clk 0:02:59]} 3. Bc4 {[%clk 0:02:54]}  Bc5 {[%clk 0:02:59]} 4. O-O {[%clk 0:02:53]}  Nf6 {[%clk 0:02:59]} 5. d3 {[%clk 0:02:53]}  d6 {[%clk 0:02:59]} 6. c3 {[%clk 0:02:52]}  a6 {[%clk 0:02:59]} 7. Bb3 {[%clk 0:02:51]}  Ba7 {[%clk 0:03:00]} 8. Re1 {[%clk 0:02:48]}  O-O {[%clk 0:02:59]} 9. h3 {[%clk 0:02:47]}  h6 {[%clk 0:02:59]} 10. Nbd2 {[%clk 0:02:46]}  Be6 {[%clk 0:02:59]} 11. Nf1 {[%clk 0:02:46]}  Re8 {[%clk 0:02:59]} 12. Be3 {[%clk 0:02:45]}  d5 {[%clk 0:02:58]} 13. Bxa7 {[%clk 0:02:43]}  Rxa7 {[%clk 0:02:59]} 14. Ng3 {[%clk 0:02:39]}  Ra8 {[%clk 0:02:56]} 15. exd5 {[%clk 0:02:28]}  Bxd5 {[%clk 0:02:56]} 16. Bxd5 {[%clk 0:02:29]}  Qxd5 {[%clk 0:02:55]} 17. Qb3 {[%clk 0:02:28]}  Qxb3 {[%clk 0:02:55]} 18. axb3 {[%clk 0:02:28]}  Rad8 {[%clk 0:02:55]} 19. Rad1 {[%clk 0:02:27]}  a5 {[%clk 0:02:44]} 20. Ne4 {[%clk 0:02:12]}  Nd7 {[%clk 0:02:38]} 21. g4 {[%clk 0:02:05]}  b6 {[%clk 0:02:16]} 22. h4 {[%clk 0:01:56]}  Nc5 {[%clk 0:02:14]} 23. Nxc5 {[%clk 0:01:48]}  bxc5 {[%clk 0:02:14]} 24. Re4 {[%clk 0:01:46]}  Rb8 {[%clk 0:02:12]} 25. Rc4 {[%clk 0:01:30]}  Rb5 {[%clk 0:02:03]} 26. Nd2 {[%clk 0:01:26]}  Rd8 {[%clk 0:02:02]} 27. Ne4 {[%clk 0:01:25]}  Rd5 {[%clk 0:01:55]} 28. Kf1 {[%clk 0:01:14]}  Nd8 {[%clk 0:01:55]} 29. Ke2 {[%clk 0:01:04]}  Ne6 {[%clk 0:01:54]} 30. Ra4 {[%clk 0:00:45]}  Rxb3 {[%clk 0:01:43]} 31. Rxa5 {[%clk 0:00:41]}  Rxb2+ {[%clk 0:01:40]} 32. Rd2 {[%clk 0:00:40]}  Nf4+ {[%clk 0:01:39]} 33. Kd1 {[%clk 0:00:40]}  Rxd2+ {[%clk 0:01:34]} 34. Kxd2 {[%clk 0:00:40]}  Rxd3+ {[%clk 0:01:31]} 35. Kc2 {[%clk 0:00:41]}  Rh3 {[%clk 0:01:22]} 36. h5 {[%clk 0:00:40]}  Ne6 {[%clk 0:01:16]} 37. Nxc5 {[%clk 0:00:38]}  Nxc5 {[%clk 0:01:07]} 38. Rxc5 {[%clk 0:00:39]}  Rf3 {[%clk 0:01:07]} 39. Rxe5 {[%clk 0:00:35]}  Rxf2+ {[%clk 0:01:07]} 40. Kd3 {[%clk 0:00:34]}  Rf4 {[%clk 0:01:07]} 41. g5 {[%clk 0:00:32]}  hxg5 {[%clk 0:01:06]} 42. Rxg5 {[%clk 0:00:32]}  Rf6 {[%clk 0:01:04]} 43. Kd4 {[%clk 0:00:20]}  Kh7 {[%clk 0:01:04]} 44. Rc5 {[%clk 0:00:17]}  c6 {[%clk 0:01:04]} 45. c4 {[%clk 0:00:12]}  Kh6 {[%clk 0:01:04]} 46. Ke4 {[%clk 0:00:09]}  Rd6 {[%clk 0:00:59]} 47. Kf4 {[%clk 0:00:08]}  Rf6+ {[%clk 0:00:53]} 48. Kg4 {[%clk 0:00:07]}  Rd6 {[%clk 0:00:52]} 49. Kf4 {[%clk 0:00:07]}  g6 {[%clk 0:00:51]} 50. hxg6 {[%clk 0:00:06]}  Kxg6 {[%clk 0:00:52]} 51. Rg5+ {[%clk 0:00:05]}  Kf6 {[%clk 0:00:51]} 52. Rf5+ {[%clk 0:00:05]}  Ke6 {[%clk 0:00:51]} 53. Re5+ {[%clk 0:00:05]}  Kd7 {[%clk 0:00:51]} 54. Kf5 {[%clk 0:00:04]}  Rd1 {[%clk 0:00:46]} 55. Kf6 {[%clk 0:00:02]}  Rf1+ {[%clk 0:00:46]} 56. Kg7 {[%clk 0:00:02]}  Kd6 {[%clk 0:00:45]} 57. Rh5 {[%clk 0:00:01]}  f5 {[%clk 0:00:45]} 58. Kg6 {[%clk 0:00:00]}  Kc5 {[%clk 0:00:43]} 0-1


[Site "https://www.chess.com"]